Cogmind - Beta 13 @@@ ROGUE MODE // 2024.07.23 @ 20:23:14 Player: Eggywontgrow Result: Destroyed by S-10 Pest with Light Assault Rifle Performance ------------- Evolutions (0) 0 Regions Visited (2) 400 Robots Destroyed (14) 70 Value Destroyed (362) 362 Prototype IDs (0) 0 Alien Tech Used (0) 0 Bonus (0) 0 TOTAL SCORE: 832 Bonus ------- None Cogmind --------- Core Integrity 0/250 Matter 280/300 Energy 100/100 System Corruption 0% Temperature Cool (0) Movement Walking (120) Location -10/Mines Parts ------- > --- POWER (1) -------- (None) > --- PROPULSION (2) --- Aluminum Leg > --- UTILITY (2) ------ Small Storage Unit Signal Interpreter > --- WEAPON (2) ------- (None) > --- INVENTORY (8) ---- Improved Heat Sink High-capacity Storage Unit Sensor Array Improved Terrain Scanner Seismic Detector ECM Suite Peak State ------------ > --- POWER ------------ Ion Engine > --- PROPULSION ------- Aluminum Leg Aluminum Leg > --- UTILITY ---------- Small Storage Unit Improved Terrain Scanner > --- WEAPON ----------- Assault Rifle Light Assault Rifle > --- INVENTORY -------- Light Ion Engine [Rating: 9] Favorites ----------- Power Ion Engine Engine Ion Engine Propulsion Aluminum Leg Leg Aluminum Leg Utility Small Storage Unit Device Seismic Detector Storage Small Storage Unit Processor Signal Interpreter Weapon Assault Rifle Energy Gun Particle Gun Ballistic Gun Assault Rifle Build | -11 -10 -10 ------- Run | Yrd Mat Min Slots Evolved . | . . . Power . | . . . Propulsion . | . . . Utility . | . . . Weapon . | . . . Parts Attached 19 | 9 8 2 Power 5 | 2 2 1 Engine 5 | 2 2 1 Core . | . . . Reactor . | . . . Propulsion 5 | 2 2 1 Treads . | . . . Leg 5 | 2 2 1 Wheel . | . . . Hover . | . . . Flight . | . . . Utility 4 | 3 1 . Device 2 | 2 . . Storage 1 | 1 . . Processor 1 | . 1 . Hackware . | . . . Protection . | . . . Artifact . | . . . Weapon 5 | 2 3 . Energy Gun 1 | . 1 . Energy Cannon . | . . . Ballistic Gun 4 | 2 2 . Ballistic Cannon . | . . . Launcher . | . . . Special Weapon . | . . . Impact Weapon . | . . . Slashing Weapon . | . . . Piercing Weapon . | . . . Special Melee Weapon . | . . . Unidentified Prototypes . | . . . Parts Lost 8 | . 3 5 Power 2 | . . 2 Propulsion 3 | . 1 2 Utility . | . . . Weapon 3 | . 2 1 Highest Loss Streak 3 | . 2 3 To Critical Strikes . | . . . Average Slot Usage (%) 96 | . 98 78 Engine 13 | . 14 12 Leg 26 | . 26 25 Device 10 | . 12 . Storage 14 | . 14 14 Processor 2 | . 1 14 Energy Gun 5 | . 5 . Ballistic Gun 20 | . 22 11 Naked Turns . | . . . Heaviest Build 16 | 14 16 11 Greatest Support 20 | 20 20 20 Greatest Overweight (x) 1 | 1 1 1 Average Overweight (x) . | . . . Largest Inventory Capacity 8 | 8 8 8 Average Capacity 7 | 7 8 8 Most Carried 8 | 2 8 8 Average Carried 5 | 1 6 6 Final Capacity 8 | 8 8 8 Final Carried 8 | 2 8 6 Class Distribution -------------------- 100% | Mutant Dominant Class ---------------- Mutant | -10/Materials Mutant | -10/Mines Resources | -11 -10 -10 ----------- Run | Yrd Mat Min Matter Collected 509 | 336 173 . Remotely . | . . . Salvage Created 560 | 80 480 . Parts 33 | 8 25 . Haulers Intercepted . | . . . Recyclers Shooed . | . . . Parts Field Recycled . | . . . Retrieved Matter . | . . . Parts Self-Destructed . | . . . Prevented . | . . . Kills | -11 -10 -10 ------- Run | Yrd Mat Min Combat Hostiles Destroyed 9 | . 9 . Guns 9 | . 9 . Classes Destroyed 4 | 1 3 . Tunneler 3 | 3 . . Recycler 1 | . 1 . Watcher 1 | . 1 . Grunt 9 | . 9 . Best Kill Streak 4 | 1 4 . Combat Bots Only 4 | . 4 . Max Kills in Single Turn 1 | 1 1 . Gunslinging . | . . . Exploded . | . . . Melee . | . . . Uniques/NPCs Destroyed . | . . . Combat | -11 -10 -10 -------- Run | Yrd Mat Min Hostile Shots Fired 132 | . 76 56 Missed 38 | . 11 27 Damage Taken 1077 | . 783 294 Core 251 | . 207 44 Absorbed by Shields . | . . . Core Remaining (%) 100 | 100 . . Volleys Fired 66 | 14 52 . Largest 2 | 2 2 . Hottest 85 | 40 85 . Shots Fired 121 | 28 93 . Gun 121 | 28 93 . Cannon . | . . . Launcher . | . . . Special . | . . . Kinetic 96 | 28 68 . Thermal 25 | . 25 . Explosive . | . . . Electromagnetic . | . . . Robot Hit Streak 10 | 3 10 . Robot Miss Streak 4 | 3 4 . Penetration Max . | . . . Secondary Targets 1 | . 1 . Max Gunslinging Chain 1 | . 1 . Shots Hit Robots 76 | 14 62 . Core Hits 30 | 5 23 2 Critical Kills . | . . . Critical Parts Destroyed . | . . . Critical Strikes 1 | . 1 . Burn 1 | . 1 . Melee Attacks . | . . . Impact . | . . . Slashing . | . . . Piercing . | . . . Sneak Attacks . | . . . Combat Hostiles . | . . . Follow-up Attacks . | . . . Damage Inflicted 909 | 143 753 13 Guns 880 | 143 737 . Cannons . | . . . Explosions . | . . . Melee . | . . . Ramming 29 | . 16 13 Kinetic 637 | 143 494 . Thermal 243 | . 243 . Explosive . | . . . Electromagnetic . | . . . Impact . | . . . Slashing . | . . . Piercing . | . . . Highest Corruption . | . . . Average Corruption . | . . . Corruption Purged . | . . . Corruption Blocked . | . . . Overload Shots . | . . . Overflow Damage . | . . . Projectiles . | . . . Explosions . | . . . Melee . | . . . Knockbacks . | . . . Impact . | . . . Kinetic . | . . . Secondary . | . . . Self-Inflicted Damage . | . . . Shots . | . . . Rammed . | . . . Targets Rammed 8 | . 3 5 Kicked 8 | . 3 5 Crushed . | . . . Highest Temperature 378 | . 378 . Average Temperature 130 | . 130 . Received Heat Transfer 459 | . 432 27 Effects 7 | . 7 . Shutdowns 1 | . 1 . Interference 6 | . 6 . Siege Activations . | . . . Robots Corrupted . | . . . Combat Hostiles . | . . . Parts Fried . | . . . Impact Corruptions . | . . . Robots Melted . | . . . Combat Hostiles . | . . . Parts Melted 1 | . 1 . Heat Transferred 629 | . 629 . Parts Sabotaged . | . . . Parts Stolen . | . . . Parts Stripped . | . . . Power Chain Reactions . | . . . Alert | -11 -10 -10 ------- Run | Yrd Mat Min Peak Influence 195 | 15 195 35 Initial 30 | . 9 30 Average 58 | 6 82 21 Maximum Alert Level . | . . . Low Security (%) 100 | 100 100 100 Level 1 . | . . . Level 2 . | . . . Level 3 . | . . . Level 4 . | . . . Level 5 . | . . . High Security . | . . . Max Security . | . . . Squads Dispatched 5 | . 5 . Investigation 3 | . 3 . Extermination . | . . . Reinforcement 2 | . 2 . Assault . | . . . Garrison . | . . . Intercept . | . . . Searches Triggered . | . . . Construction Impeded . | . . . Haulers Reinforced . | . . . Active Scanning Responses . | . . . Cargo Convoy Interrupts . | . . . Stealth | -11 -10 -10 --------- Run | Yrd Mat Min Distress Signals . | . . . Communications Jammed . | . . . Distress Signals . | . . . Times Spotted 25 | . 20 5 Peak Tracking Total 5 | . 5 5 Tactical Retreats 1 | . 1 . Traps | -11 -10 -10 ------- Run | Yrd Mat Min Traps Triggered 2 | . 2 . Indirectly . | . . . Trap Hack Attempts . | . . . Triggered . | . . . Disarmed . | . . . Reprogrammed . | . . . Reused . | . . . Traps Extracted . | . . . Installed . | . . . Triggered . | . . . Machines | -11 -10 -10 ---------- Run | Yrd Mat Min Machines Disabled . | . . . Max in Single Turn . | . . . Machines Repaired . | . . . Machines Dismantled . | . . . Machines Sabotaged . | . . . Overloaded Fab Kills . | . . . Hacking | -11 -10 -10 --------- Run | Yrd Mat Min Machines Accessed 2 | . 2 . Terminals 1 | . 1 . Fabricators . | . . . Repair Stations . | . . . Recycling Units 1 | . 1 . Scanalyzers . | . . . Garrison Access . | . . . Total Hacks 7 | . 7 . Successful 4 | . 4 . Failed 3 | . 3 . Catastrophic 1 | . 1 . Database Lockouts . | . . . Manual . | . . . Terminals 3 | . 3 . Fabricators . | . . . Repair Stations . | . . . Recycling Units 4 | . 4 . Scanalyzers . | . . . Garrison Access . | . . . Terminal Hacks . | . . . Fabricator Hacks . | . . . Repair Station Hacks . | . . . Recycling Unit Hacks 4 | . 4 . Process 1 | . 1 . Report Inventory 2 | . 2 . Retrieve Matter 1 | . 1 . Scanalyzer . | . . . Garrison Access Hacks . | . . . Unauthorized Hacks . | . . . Terminals . | . . . Fabricators . | . . . Repair Stations . | . . . Recycling Units . | . . . Scanalyzers . | . . . Garrison Access . | . . . Data Cores Recovered . | . . . Used . | . . . Hacking Detections 2 | . 2 . Full Trace Events 2 | . 2 . Feedback Events . | . . . Feedback Blocked . | . . . Robot Schematics Acquired . | . . . Robots Built . | . . . Authchips . | . . . Time . | . . . Total Robot Build Rating . | . . . Part Schematics Acquired . | . . . Parts Built . | . . . Authchips . | . . . Time . | . . . Total Part Build Rating . | . . . Parts Repaired . | . . . Time . | . . . Parts Recycled . | . . . Recycled Matter 17 | . 17 . Retrieved Matter 17 | . 17 . Retrieved Components . | . . . Parts Scanalyzed . | . . . Part Schematics Acquired . | . . . Parts Damaged . | . . . Bothacking | -11 -10 -10 ------------ Run | Yrd Mat Min Used RIF Installer . | . . . Robots Hacked . | . . . Non-combat . | . . . Combat . | . . . Robot Hacks Applied . | . . . Relay Couplers Released . | . . . Fabnet Peak Effective % . | . . . Robots Rewired . | . . . Allies Hacked . | . . . Hacks Repelled . | . . . Allies | -11 -10 -10 -------- Run | Yrd Mat Min Total Allies . | . . . Largest Group . | . . . Highest-Rated Group . | . . . Highest-Rated Ally . | . . . Total Orders . | . . . Ally Attacks . | . . . Total Damage . | . . . Kills . | . . . Allies Corrupted . | . . . Allies Melted . | . . . Intel | -11 -10 -10 ------- Run | Yrd Mat Min Robot Analysis Total . | . . . Derelict Logs Recovered 1 | . . 1 Drone Launches . | . . . Drone Recoveries . | . . . Exploration | -11 -10 -10 ------------- Run | Yrd Mat Min Turns Passed 1028 | 246 681 101 Spaces Moved 627 | 159 391 77 Core 2 | 2 . . Treads . | . . . Legs 625 | 157 391 77 Wheels . | . . . Hover . | . . . Flight . | . . . Fastest Speed 50 | 50 120 120 Average Speed 121 | 120 121 120 Slowest Speed 190 | 190 190 190 Overloaded Moves . | . . . Propulsion Burnouts . | . . . Robots Hopped . | . . . Cave-ins Triggered . | . . . Exploration Rate (%) 32 | 11 63 24 Regions Visited 2 Branch Regions 1 Pre-discovered Areas 1 | . . 1 Known Exits Taken 1 | . 1 . Unknown Exits Taken 1 | 1 . . Scrap Searched . | . . . Spaces Dug . | . . . Terrain Destroyed . | . . . Melee . | . . . Projectile . | . . . AOE . | . . . Terrain Rammed . | . . . Walls Destroyed . | . . . Machines Disabled . | . . . Actions | -11 -10 -10 --------- Run | Yrd Mat Min Total 780 | 184 512 84 Wait 42 | . 42 . Move 625 | 158 390 77 Hop . | . . . Pick Up 14 | 3 11 . Fast Attach 7 | 5 2 . Attach 8 | 2 4 2 Detach 1 | . 1 . Swap 4 | 2 2 . Drop 5 | . 5 . Fire 66 | 14 52 . Melee . | . . . Ram . | . . . Kick 8 | . 3 5 Crush . | . . . Escape Stasis . | . . . Rewire . | . . . Trap . | . . . Miscellaneous . | . . . Route ------- -11/Scrapyard -10/Materials (discovered 3 exits: *Mat x2 / *Min) -10/Mines (discovered 1 exit: *Mat) History --------- Turn | Location | Event 17 | -11/Scrapyard | Discovered new exit (range 15) 247 | -11/Scrapyard | Entered Materials 309 | -10/Materials | Build established: Mutant 540 | -10/Materials | Discovered new exit (range 3) 748 | -10/Materials | Core integrity fell below 50% 813 | -10/Materials | Discovered new exit (range 10) 841 | -10/Materials | Discovered new exit (range 7) 876 | -10/Materials | Identified exit to Mines 928 | -10/Materials | Core integrity fell below 20% 928 | -10/Materials | Entered Mines 962 | -10/Mines | Discovered new exit (range 10) 971 | -10/Mines | Identified exit to Materials 976 | -10/Mines | Lost 3 parts (1p1n1w) 995 | -10/Mines | Learned location of Zion (-7) 1029 | -10/Mines | Destroyed by S-10 Pest with Light Assault Rifle Last Messages --------------- M005. LOCATION=MINES GOAL=ESCAPE 00935_ Ion Engine destroyed. 00945_ Aluminum Leg destroyed. 00962_ EXIT=FOUND 00971_ K-01 Serf cleans the Laser Drill. 00971_ EXIT=IDENTIFIED: MATERIALS 00979_ K-01 Serf cleans the Laser Drill. 00995_ Acquired derelict log, extracted data. World map updated: -7/Zion. 01007_ S-10 Pest destroyed. 01007_ Aluminum Leg destroyed. 01008_ Lgt. Assault Rifle destroyed. 01024_ Kicked S-10 Pest. 01025_ K-01 Serf collects debris. 01026_ Kicked S-10 Pest. 01027_ Ion Engine destroyed. 01027_ Kicked S-10 Pest. 01028_ Kicked S-10 Pest out of the way. Map ----- +----------------------------------------------------+ | | | | | | | | | | | | | | | | | | | | | ?????????????????????????????????????????????????? | | ?????????????????????????????????????????????????? | | ?????????????????????????????????????????????????? | | ?????????????????????????????????????????????????? | | ?????????????????????????????????????????????????? | | ????????????????????###########??????????????????? | | ????????????????????# #??????????????????? | | ????????????????????# #??????????????????? | | ????????????????????# #??????????????????? | | ????????????????????# """ """ #??????????????????? | | ????????????????????# """ """ #??????????????????? | | ????????????????????# """ """ #??????????????????? | | ????????????????????# #??????????????????? | | ??######????????????# """s""" #??????????????????? | | ??#" "##???????????#k""" """ #??????????????????? | | ??!! !!#???????????# """@""" #??????????????????? | | ???! !!#???????????# s #??????????????????? | | ???$ ###??????????# """ """ #??????????????????? | | ?###//## #??????????# """ """ #??????????????????? | | ?# #??????????# """ """ #??????????????????? | | ?# #??????????# #??????????????????? | | ?# #??????????# """ """ #??????????????????? | | ?# #??????????# """ """ #??????????????????? | | ?# ##??????????# """ """ #??????????????????? | | ?# ##???????????# #??????????????????? | | ?# #????????????# * #??????????????????? | | ?# ##????????????####%######??????????????????? | | ?# #????????????????# #???????????????????????? | | ?## #????????????????# #???????????????????????? | | ??# #????????????????# #???????????????????????? | | ??# ##????????????????# #???????????????????????? | | ??# #?????????????????# #???????????????????????? | | ??# #?????????????????# #????? ??????????????? | | ??# #???###??????????## ## """ ???????????????? | | ??# #???#T#########??# """ ???????????????? | | ??# #???# #### ### """ ???????????????? | | ??# #???# #???##?##????????????????? | | ??# #???# """ """ ######????????????????????????? | | ??# #???# """ """ #?????????????????????????????? | | ??# ##### """ """ #?????????????????????????????? | +----------------------------------------------------+ Best States ------------- Heat Dissipation 25 Energy Generation 10 Energy Capacity 250 Matter Stores 300 Matter Capacity 300 Sight Range 16 Terrain Scan Range 16 Terrain Scan Density 10 Evasion (%) 55 Item Schematics ----------------- None Robot Schematics ------------------ None Fabricated ------------ Nothing Alien Tech Used ----------------- None Achievements -------------- None Challenges ------------ None Game ------ Seed UltimateReactionSuite Manual? 0 Play Time 00:15:39 Cumulative 12.5 hours Start 2024.07.23 @ 20:05:38 End 2024.07.23 @ 20:23:14 Sessions 2 Manual Loads 0 Difficulty Rogue Special Mode None Game No. 16 Rogue 16 Adventurer 0 Explorer 0 Win Type - Total 0 Types 0/0/0/0/0/0/0/0/0 Lore% 3 Gallery% 18 Achievement% 16 Wizard Run 0 Options --------- Layout 0 ASCII 0 Keyboard 1 Movement Numpad Keybinds 1 Fullscreen 2 Font 24/Smallcaps Map View 38x25 Zoom Use 77% Tactical HUD 1 Map Filters NONE Filters NONE Steam 1 RUN: bebf671a-be32-4243-b8e2-f25f31637975